fUSD/lending_fUSD_20240212
["ID","MTS","AMOUNT","RATE_DAILY","PERIOD"]
[313815233,1707735069636,-500.0,0.00023228,2]
[313815234,1707735069653,-500.0,0.00023228,2]
[313815235,1707735069664,-500.0,0.00023228,2]
[313815236,1707735069675,-500.0,0.00023228,2]
[313815237,1707735069684,-500.0,0.00023228,2]
[313815238,1707735069694,-500.0,0.00023228,2]
[313815239,1707735069724,-500.0,0.00023228,2]
[313815240,1707735069735,-500.0,0.00023228,2]
[313815241,1707735069744,-500.0,0.00023228,2]
[313815242,1707735069769,-500.0,0.00023228,2]
[313815243,1707735069785,-500.0,0.00023228,2]
[313815244,1707735069798,-568.46678516,0.00023228,2]
[313815245,1707735069818,-489.49857856,0.00023228,2]
[313815246,1707735069834,-500.0,0.00023228,2]
[313815247,1707735069844,-500.0,0.00023228,2]
[313815248,1707735069855,-500.0,0.00023228,2]
[313815249,1707735069864,-228.61593114,0.00023228,2]
[313815250,1707735069874,-500.0,0.00023228,2]
[313815251,1707735069883,-500.0,0.00023228,2]
[313815252,1707735069902,-500.0,0.00023228,2]
[313815253,1707735069911,-500.0,0.00023228,2]
[313815254,1707735069921,-500.0,0.00023228,2]
[313815255,1707735069930,-500.0,0.00023228,2]
[313815256,1707735069939,-500.0,0.00023228,2]
[313815257,1707735069949,-500.0,0.00023228,2]
[313815258,1707735069959,-534.34158102,0.00023228,2]
[313815259,1707735069971,-500.0,0.00023228,2]
[313815260,1707735069981,-529.31515537,0.00023228,2]
[313815261,1707735069991,-500.0,0.00023228,2]
[313815262,1707735070001,-500.0,0.00023228,2]
[313815263,1707735070010,-500.0,0.00023228,2]
[313815264,1707735070018,-500.0,0.00023228,2]
[313815265,1707735070028,-500.0,0.00023228,2]
[313815266,1707735070037,-189.65657379,0.00023228,2]
[313815267,1707735070046,-622.83805664,0.00023228,2]
[313815268,1707735070056,-632.57567252,0.00023228,2]
[313815269,1707735070065,-196.24,0.00023228,2]
[313815270,1707735070075,-575.16252694,0.00023228,2]
[313815271,1707735070084,-500.0,0.00023228,2]
[313815272,1707735070094,-500.0,0.00023228,2]
[313815273,1707735070104,-1000.0,0.00023228,7]
[313815274,1707735070114,-500.0,0.00023228,2]
[313815275,1707735070124,-536.59543437,0.00023228,2]
[313815276,1707735070134,-509.14,0.00023228,2]
[313815277,1707735070144,-520.83,0.00023228,2]
[313815278,1707735070155,-500.0,0.00023228,2]
[313815279,1707735070166,-500.0,0.00023228,2]
[313815280,1707735070176,-500.0,0.00023228,2]
[313815281,1707735070186,-500.0,0.00023228,2]
[313815282,1707735070208,-168.78858637,0.00023228,2]
[313815283,1707735070218,-500.0,0.00023228,2]
[313815284,1707735070242,-519.16054841,0.00023228,2]
[313815285,1707735070258,-500.0,0.00023228,2]
[313815286,1707735070268,-500.0,0.00023228,2]
[313815287,1707735070279,-783.3,0.00023228,2]
[313815288,1707735070295,-500.0,0.00023228,2]
[313815289,1707735070306,-500.0,0.00023228,2]
[313815290,1707735070315,-707.32,0.00023228,2]
[313815291,1707735070325,-500.0,0.00023228,2]
[313815292,1707735070335,-500.0,0.00023228,2]
[313815293,1707735070345,-500.0,0.00023228,2]
[313815294,1707735070355,-500.0,0.00023228,2]
[313815295,1707735070368,-560.01062794,0.00023228,2]
[313815296,1707735070378,-500.0,0.00023228,2]
[313815297,1707735070387,-500.0,0.00023228,2]
[313815298,1707735070397,-618.89,0.00023228,2]
[313815299,1707735070407,-500.0,0.00023228,2]
[313815300,1707735070417,-500.0,0.00023228,2]
[313815301,1707735070426,-500.0,0.00023228,2]
[313815302,1707735070437,-500.0,0.00023228,2]
[313815303,1707735070447,-500.0,0.00023228,2]
[313815304,1707735070457,-500.0,0.00023228,2]
[313815305,1707735070467,-500.0,0.00023228,2]
[313815306,1707735070476,-2711.38,0.00023228,2]
[313815307,1707735070486,-500.0,0.00023228,2]
[313815308,1707735070495,-500.0,0.00023228,2]
[313815309,1707735070507,-500.0,0.00023228,2]
[313815310,1707735070516,-340.58891754,0.00023228,2]
[313815311,1707735070525,-252.76951752,0.00023228,2]
[313815312,1707735070536,-500.0,0.00023228,2]
[313815313,1707735070546,-681.86,0.00023228,2]
[313815314,1707735070556,-186.49671655,0.00023228,2]
[313815315,1707735070566,-1469.44,0.00023228,2]
[313815316,1707735070575,-500.0,0.00023228,2]
[313815317,1707735070585,-280.34016697,0.00023228,2]
[313815318,1707735070595,-500.0,0.00023228,2]
[313815319,1707735070610,-537.01,0.00023228,2]
[313815320,1707735070623,-2252.02,0.00023228,2]
[313815321,1707735070643,-688.56,0.00023228,2]
[313815322,1707735070662,-500.0,0.00023228,2]
[313815323,1707735070676,-500.0,0.00023228,2]
[313815324,1707735070689,-500.0,0.00023228,2]
[313815325,1707735070703,-500.0,0.00023228,2]
[313815326,1707735070723,-344.45,0.00023228,2]
[313815327,1707735070734,-500.0,0.00023228,2]
[313815328,1707735070746,-500.0,0.00023228,2]
[313815329,1707735070757,-555.88273051,0.00023228,2]
[313815330,1707735070770,-500.0,0.00023228,2]
[313815331,1707735070782,-250.90274327,0.00023228,2]
[313815332,1707735070793,-500.0,0.00023228,2]
[313815333,1707735070803,-500.0,0.00023228,2]
[313815334,1707735070819,-500.0,0.00023228,2]
[313815335,1707735070829,-500.0,0.00023228,2]
[313815336,1707735070840,-618.54018318,0.00023228,2]
[313815337,1707735070869,-500.0,0.00023228,2]
[313815338,1707735070880,-500.0,0.00023228,2]
[313815339,1707735070890,-500.0,0.00023228,2]
[313815340,1707735070900,-500.0,0.00023228,2]
[313815341,1707735070919,-500.0,0.00023228,2]
[313815342,1707735070929,-1838.36,0.00023228,2]
[313815343,1707735070938,-500.0,0.00023228,2]
[313815344,1707735070948,-500.0,0.00023228,2]
[313815345,1707735070972,-500.0,0.00023228,2]
[313815346,1707735070991,-500.0,0.00023228,2]
[313815347,1707735071010,-500.0,0.00023228,2]
[313815348,1707735071023,-500.0,0.00023228,2]
[313815349,1707735071035,-500.0,0.00023228,2]
[313815350,1707735071045,-500.0,0.00023228,2]
[313815351,1707735071058,-500.0,0.00023228,2]
[313815352,1707735071071,-500.0,0.00023228,2]
[313815353,1707735071082,-500.0,0.00023228,2]
[313815354,1707735071092,-500.0,0.00023228,2]
[313815355,1707735071102,-500.0,0.00023228,2]
[313815356,1707735071112,-500.0,0.00023228,2]
[313815357,1707735071121,-162.69327869,0.00023228,2]
[313815358,1707735071131,-653.74,0.00023228,2]
[313815359,1707735071140,-500.0,0.00023228,2]
[313815360,1707735071150,-500.0,0.00023228,2]
[313815361,1707735071160,-500.0,0.00023228,2]
[313815362,1707735071169,-4603.61,0.00023228,2]
[313815363,1707735071179,-500.0,0.00023228,2]
[313815364,1707735071188,-500.0,0.00023228,2]
[313815365,1707735071198,-500.0,0.00023228,2]
[313815366,1707735071209,-939.6,0.00023228,2]
[313815367,1707735071218,-500.0,0.00023228,2]
[313815368,1707735071227,-500.0,0.00023228,2]
[313815369,1707735071237,-500.0,0.00023228,2]
[313815370,1707735071246,-911.93,0.00023228,2]
[313815371,1707735071256,-500.0,0.00023228,2]
[313815372,1707735071265,-500.0,0.00023228,2]
[313815373,1707735071274,-1543.06,0.00023228,2]
[313815374,1707735071284,-793.68,0.00023228,2]
[313815375,1707735071293,-659.79,0.00023228,2]
[313815376,1707735071302,-500.0,0.00023228,2]
[313815377,1707735071311,-500.0,0.00023228,2]
[313815378,1707735071321,-2800.78,0.00023228,2]
[313815379,1707735071331,-500.0,0.00023228,2]
[313815380,1707735071341,-500.0,0.00023228,2]
[313815381,1707735071350,-500.0,0.00023228,2]
[313815382,1707735071359,-500.0,0.00023228,2]
[313815383,1707735071369,-703.75,0.00023228,2]
[313815384,1707735071378,-607.76,0.00023228,2]
[313815385,1707735071389,-500.0,0.00023228,2]
[313815386,1707735071398,-500.0,0.00023228,2]
[313815387,1707735071408,-500.0,0.00023228,2]
[313815388,1707735071417,-500.0,0.00023228,2]
[313815389,1707735071427,-612.44,0.00023228,2]
[313815390,1707735071438,-540.31,0.00023228,2]
[313815391,1707735071447,-500.0,0.00023228,2]
[313815392,1707735071459,-500.0,0.00023228,2]
[313815393,1707735071469,-597.88,0.00023228,2]
[313815394,1707735071479,-500.0,0.00023228,2]
[313815395,1707735071488,-703.76,0.00023228,2]
[313815396,1707735071497,-500.0,0.00023228,2]
[313815397,1707735071506,-500.0,0.00023228,2]
[313815398,1707735071516,-500.0,0.00023228,2]
[313815399,1707735071526,-605.58,0.00023228,2]
[313815400,1707735071535,-500.0,0.00023228,2]
[313815401,1707735071544,-500.0,0.00023228,2]
[313815402,1707735071554,-990.95,0.00023228,2]
[313815403,1707735071563,-556.38,0.00023228,2]
[313815404,1707735071573,-713.73,0.00023228,2]
[313815405,1707735071582,-403.04113886,0.00023228,2]
[313815406,1707735071592,-500.0,0.00023228,2]
[313815407,1707735071601,-500.0,0.00023228,2]
[313815408,1707735071610,-500.0,0.00023228,2]
[313815409,1707735071620,-762.09,0.00023228,2]
[313815410,1707735071629,-500.0,0.00023228,2]
[313815411,1707735071638,-266.1133729,0.00023228,2]
[313815412,1707735071648,-1678.01,0.00023228,2]
[313815413,1707735071657,-731.06,0.00023228,2]
[313815414,1707735071666,-500.0,0.00023228,2]
[313815415,1707735071676,-612.73,0.00023228,2]
[313815416,1707735071685,-619.42392062,0.00023228,2]
[313815417,1707735071695,-2458.08,0.00023228,2]
[313815418,1707735071705,-500.0,0.00023228,2]
[313815419,1707735071714,-500.0,0.00023228,2]
[313815420,1707735071723,-500.0,0.00023228,2]
[313815421,1707735071732,-500.0,0.00023228,2]
[313815422,1707735071741,-213.23017907,0.00023228,2]
[313815423,1707735071750,-500.0,0.00023228,2]
[313815424,1707735071759,-500.0,0.00023228,2]
[313815425,1707735071768,-500.0,0.00023229,2]
[313815426,1707735071778,-500.0,0.00023229,2]
[313815427,1707735071787,-500.0,0.00023229,2]
[313815428,1707735071796,-500.0,0.00023229,2]
[313815429,1707735071805,-188.79377731,0.00023229,2]
[313815430,1707735071814,-500.0,0.00023229,2]
[313815431,1707735071823,-490.21933724,0.00023229,2]
[313815432,1707735071832,-500.0,0.00023229,2]
[313815433,1707735071841,-500.0,0.00023229,2]
[313815434,1707735071850,-500.0,0.00023229,2]
[313815435,1707735071859,-500.0,0.00023229,2]
[313815436,1707735071869,-500.0,0.00023229,2]
[313815437,1707735071878,-500.0,0.00023229,2]
[313815438,1707735071890,-537.64669333,0.00023229,2]
[313815439,1707735071899,-500.0,0.00023229,2]
[313815440,1707735071908,-500.0,0.00023229,2]
[313815441,1707735071918,-500.0,0.00023229,2]
[313815442,1707735071926,-165.05,0.00023233,2]
[313815443,1707735071935,-4206.0,0.000233,2]
[313815444,1707735071945,-174.25,0.0002333,2]
[313815445,1707735071955,-500.0,0.00023499,2]
[313815446,1707735071966,-500.0,0.00023499,2]
[313815447,1707735071975,-500.0,0.00023499,2]
[313815448,1707735071984,-241.74550964,0.00023499,2]
[313815449,1707735071993,-500.0,0.000235,2]
[313815450,1707735072003,-500.0,0.000235,2]
[313815451,1707735072012,-579.33,0.000235,2]
[313815452,1707735072021,-2304.48,0.000235,2]
[313815453,1707735072031,-500.0,0.000235,2]
[313815454,1707735072040,-6366.64,0.000235,2]
[313815455,1707735072049,-2086.18,0.000235,2]
[313815456,1707735072058,-862.58,0.000235,2]
[313815457,1707735072068,-1948.16,0.000235,2]
[313815458,1707735072078,-673.35,0.000235,2]
[313815459,1707735072088,-500.0,0.000235,2]
[313815460,1707735072097,-500.0,0.000235,2]
[313815461,1707735072107,-500.0,0.000235,2]
[313815462,1707735072117,-1740.03,0.000235,2]
[313815463,1707735072126,-526.84,0.000235,2]
[313815464,1707735072136,-500.0,0.000235,2]
[313815465,1707735072145,-973.64,0.000235,2]
[313815466,1707735072155,-6745.22,0.000235,2]
[313815467,1707735072164,-509.25,0.000235,2]
[313815468,1707735072174,-500.0,0.000235,2]
[313815469,1707735072184,-500.0,0.000235,2]
[313815470,1707735072194,-500.0,0.000235,2]
[313815471,1707735072204,-505.12,0.000235,2]
[313815472,1707735072213,-500.0,0.000235,2]
[313815473,1707735072222,-1092.67,0.000235,2]
[313815474,1707735072231,-2684.85,0.000235,2]
[313815475,1707735072241,-500.0,0.000235,2]
[313815476,1707735072251,-529.57,0.000235,2]
[313815477,1707735072260,-500.0,0.000235,2]
[313815478,1707735072269,-602.36,0.000235,2]
[313815479,1707735072279,-864.29,0.000235,2]
[313815480,1707735072289,-500.0,0.000235,2]
[313815481,1707735072299,-500.0,0.000235,2]
[313815482,1707735072308,-500.0,0.000235,2]
[313815483,1707735072317,-2142.06,0.000235,2]
[313815484,1707735072327,-500.0,0.000235,2]
[313815485,1707735072337,-500.0,0.00023501,2]
[313815486,1707735072347,-500.0,0.00023501,2]
[313815487,1707735072356,-500.0,0.00023501,2]
[313815488,1707735072365,-500.0,0.00023501,2]
[313815489,1707735072374,-500.0,0.00023501,2]
[313815490,1707735072383,-500.0,0.00023501,2]
[313815491,1707735072393,-500.0,0.00023501,2]
[313815492,1707735072401,-500.0,0.00023501,2]
[313815493,1707735072410,-500.0,0.00023501,2]
[313815494,1707735072419,-554.60611641,0.00023501,2]
[313815495,1707735072428,-548.4,0.00023501,2]
[313815496,1707735072439,-500.0,0.00023501,2]
[313815497,1707735072452,-500.0,0.00023501,2]
[313815498,1707735072461,-500.0,0.00023501,2]
[313815499,1707735072471,-500.0,0.00023501,2]
[313815500,1707735072481,-500.0,0.00023501,2]
[313815501,1707735072490,-500.0,0.00023501,2]
[313815502,1707735072499,-500.0,0.00023501,2]
[313815503,1707735072680,-500.0,0.00023501,2]
[313815504,1707735072690,-677.22,0.00023501,2]
[313815505,1707735072700,-544.02,0.00023501,2]
[313815506,1707735072709,-500.0,0.00023501,2]
[313815507,1707735072719,-500.0,0.00023501,2]
[313815508,1707735072728,-500.0,0.00023501,2]
[313815509,1707735072737,-500.0,0.00023501,2]
[313815510,1707735072746,-559.07,0.00023501,2]
[313815511,1707735072756,-500.0,0.00023501,7]
[313815512,1707735072764,-276.96458654,0.00023501,2]
[313815513,1707735072773,-581.92,0.00023501,2]
[313815514,1707735072782,-543.92,0.00023501,2]
[313815515,1707735072792,-570.54,0.00023501,2]
[313815516,1707735072800,-500.0,0.00023501,2]
[313815517,1707735072810,-536.03,0.00023501,2]
[313815518,1707735072819,-500.0,0.00023501,2]
[313815519,1707735072827,-539.50000017,0.00023501,2]
[313815520,1707735072836,-500.0,0.00023501,2]
[313815521,1707735072845,-500.0,0.00023501,2]
[313815522,1707735072855,-533.07,0.00023501,2]
[313815523,1707735072864,-553.87985769,0.00023501,2]
[313815524,1707735072874,-500.0,0.00023501,2]
[313815525,1707735072884,-574.77,0.00023501,2]
[313815526,1707735072893,-500.0,0.00023501,2]
[313815527,1707735072903,-500.0,0.00023501,2]
[313815528,1707735072913,-871.23,0.00023501,2]
[313815529,1707735072922,-500.0,0.00023501,2]
[313815530,1707735072931,-500.0,0.00023501,2]
[313815531,1707735072940,-643.11,0.00023501,2]
[313815532,1707735072949,-500.0,0.00023501,2]
[313815533,1707735072960,-952.45,0.00023501,2]
[313815534,1707735072969,-500.0,0.00023501,2]
[313815535,1707735072978,-500.0,0.00023501,2]
[313815536,1707735072987,-500.0,0.00023501,2]
[313815537,1707735072996,-706.8,0.00023501,2]
[313815538,1707735073006,-972.12,0.00023501,2]
[313815539,1707735073016,-740.12,0.00023501,2]
[313815540,1707735073025,-500.0,0.00023501,2]
[313815541,1707735073035,-768.67,0.00023501,2]
[313815542,1707735073044,-500.0,0.00023501,2]
[313815543,1707735073054,-507.83,0.00023501,2]
[313815544,1707735073064,-653.17,0.00023501,2]
[313815545,1707735073074,-597.21053882,0.00023501,2]
[313815546,1707735073084,-500.0,0.00023501,2]
[313815547,1707735073093,-882.98,0.00023501,2]
[313815548,1707735073103,-500.0,0.00023501,2]
[313815549,1707735073112,-500.0,0.00023501,2]
[313815550,1707735073122,-515.82,0.00023501,2]
[313815551,1707735073132,-500.0,0.00023501,2]
[313815552,1707735073142,-500.0,0.00023501,2]
[313815553,1707735073151,-500.0,0.00023501,2]
[313815554,1707735073161,-500.0,0.00023501,2]
[313815555,1707735073171,-500.0,0.00023501,2]
[313815556,1707735073181,-150.0,0.00023501,2]
[313815557,1707735073190,-236.98885219,0.00023501,2]
[313815558,1707735073202,-500.0,0.00023501,2]
[313815559,1707735073212,-500.0,0.00023501,2]
[313815560,1707735073222,-500.0,0.00023501,2]
[313815561,1707735073232,-500.0,0.00023501,2]
[313815562,1707735073241,-621.55244975,0.00023501,2]
[313815563,1707735073251,-500.0,0.00023501,2]
[313815564,1707735073260,-216.85526259,0.00023501,2]
[313815565,1707735073270,-500.0,0.00023501,2]
[313815566,1707735073280,-500.0,0.00023501,2]
[313815567,1707735073291,-4432.79,0.00023501,2]
[313815568,1707735073300,-500.0,0.00023501,2]
[313815569,1707735073310,-177.92270713,0.00023501,2]
[313815570,1707735073319,-500.0,0.00023501,2]
[313815571,1707735073329,-500.0,0.00023501,2]
[313815572,1707735073339,-2834.27,0.00023501,2]
[313815573,1707735073348,-1272.24,0.00023501,2]
[313815574,1707735073358,-500.0,0.00023501,2]
[313815575,1707735073368,-500.0,0.00023501,2]
[313815576,1707735073378,-500.0,0.00023501,2]
[313815577,1707735073387,-500.0,0.00023501,2]
[313815578,1707735073397,-519.45,0.00023501,2]
[313815579,1707735073407,-500.0,0.00023501,2]
[313815580,1707735073416,-500.0,0.00023501,2]
[313815581,1707735073426,-500.0,0.00023501,2]
[313815582,1707735073436,-500.0,0.00023501,2]
[313815583,1707735073448,-500.0,0.00023501,2]
[313815584,1707735073459,-5024.21,0.00023501,2]
[313815585,1707735073469,-500.0,0.00023501,2]
[313815586,1707735073479,-500.0,0.00023501,2]
[313815587,1707735073489,-4933.54,0.00023501,2]
[313815588,1707735073499,-500.0,0.00023501,2]
[313815589,1707735073510,-555.59,0.00023501,2]
[313815590,1707735073520,-500.0,0.00023501,2]
[313815591,1707735073531,-2897.97,0.00023501,2]
[313815592,1707735073541,-6201.98,0.00023501,2]
[313815593,1707735073550,-500.0,0.00023501,2]
[313815594,1707735073560,-2371.51,0.00023501,2]
[313815595,1707735073570,-500.0,0.00023501,2]
[313815596,1707735073580,-500.0,0.00023501,2]
[313815597,1707735073589,-500.0,0.00023501,2]
[313815598,1707735073599,-3045.48,0.00023501,2]
[313815599,1707735073609,-531.38845883,0.00023501,2]
[313815600,1707735073619,-500.0,0.00023501,2]
[313815601,1707735073628,-500.0,0.00023501,2]
[313815602,1707735073638,-215.12,0.00023501,2]
[313815603,1707735073648,-1547.39,0.00023501,2]
[313815604,1707735073657,-641.5217335,0.00023501,2]
[313815605,1707735073667,-846.31,0.00023501,2]
[313815606,1707735073676,-4097.96,0.00023501,2]
[313815607,1707735073686,-593.8934976,0.00023501,2]
[313815608,1707735073695,-500.0,0.00023501,2]
[313815609,1707735073706,-500.0,0.00023501,2]
[313815610,1707735073716,-500.0,0.00023501,2]
[313815611,1707735073726,-8400.87,0.00023501,2]
[313815612,1707735073736,-500.0,0.00023501,2]
[313815613,1707735073746,-500.0,0.00023501,2]
[313815614,1707735073756,-973.53,0.00023501,2]
[313815615,1707735073765,-504.62,0.00023501,2]
[313815616,1707735073775,-500.0,0.00023501,2]
[313815617,1707735073785,-500.0,0.00023501,2]
[313815618,1707735073795,-2007.99,0.00023501,2]
[313815619,1707735073804,-1445.04,0.00023501,2]
[313815620,1707735073813,-2108.56,0.00023501,2]
[313815621,1707735073823,-500.0,0.00023501,2]
[313815622,1707735073833,-500.0,0.00023501,2]
[313815623,1707735073842,-500.0,0.00023501,2]
[313815624,1707735073851,-778.83,0.00023501,2]
[313815625,1707735073860,-500.0,0.00023501,2]
[313815626,1707735073869,-500.0,0.00023501,2]
[313815627,1707735073879,-500.0,0.00023501,2]
[313815628,1707735073888,-751.46,0.00023501,2]
[313815629,1707735073896,-678.75,0.00023501,2]
[313815630,1707735073906,-500.0,0.00023501,2]
[313815631,1707735073914,-500.0,0.00023501,2]
[313815632,1707735073924,-698.3,0.00023501,2]
[313815633,1707735073932,-500.0,0.00023501,2]
[313815634,1707735073941,-552.16,0.00023501,2]
[313815635,1707735073950,-500.0,0.00023501,2]
[313815636,1707735073959,-500.0,0.00023501,2]
[313815637,1707735073968,-500.0,0.00023501,2]
[313815638,1707735073977,-2405.45,0.00023501,2]
[313815639,1707735073986,-500.0,0.00023501,2]
[313815640,1707735073996,-500.0,0.00023501,2]
[313815641,1707735074005,-1680.13,0.00023501,2]
[313815642,1707735074015,-2942.77,0.00023501,2]
[313815643,1707735074024,-4101.5,0.00023501,2]
[313815644,1707735074033,-500.0,0.00023501,2]
[313815645,1707735074043,-500.0,0.00023501,2]
[313815646,1707735074052,-20031.68,0.00023501,2]
[313815647,1707735074061,-500.0,0.00023501,2]
[313815648,1707735074070,-5982.13,0.00023501,2]
[313815649,1707735074079,-2670.94,0.00023501,2]
[313815650,1707735074088,-500.0,0.00023501,2]
[313815651,1707735074097,-500.0,0.00023501,2]
[313815652,1707735074106,-500.0,0.00023501,2]
[313815653,1707735074115,-500.0,0.00023501,2]
[313815654,1707735074125,-500.0,0.00023501,2]
[313815655,1707735074134,-500.0,0.00023501,2]
[313815656,1707735074144,-233.35407886,0.00023501,2]
[313815657,1707735074153,-2470.01,0.00023501,2]
[313815658,1707735074162,-500.0,0.00023501,2]
[313815659,1707735074172,-1147.39,0.00023501,2]
[313815660,1707735074181,-500.0,0.00023501,2]
[313815661,1707735074190,-524.63607903,0.00023501,2]
[313815662,1707735074199,-512.26,0.00023501,2]
[313815663,1707735074209,-500.0,0.00023501,2]
[313815664,1707735074218,-528.76,0.00023501,2]
[313815665,1707735074227,-689.37,0.00023501,2]
[313815666,1707735074237,-710.54,0.00023501,2]
[313815667,1707735074247,-500.0,0.00023501,2]
[313815668,1707735074257,-500.0,0.00023501,2]
[313815669,1707735074266,-7132.65,0.00023501,2]
[313815670,1707735074276,-500.0,0.00023501,2]
[313815671,1707735074285,-1207.55,0.00023501,2]
[313815672,1707735074295,-500.0,0.00023501,2]
[313815673,1707735074304,-160.98037728,0.00023501,2]
[313815674,1707735074314,-1690.53,0.00023501,2]
[313815675,1707735074323,-500.0,0.00023501,2]
[313815676,1707735074333,-500.0,0.00023501,2]
[313815677,1707735074342,-500.0,0.00023501,2]
[313815678,1707735074352,-767.62,0.00023501,2]
[313815679,1707735074361,-500.0,0.00023501,2]
[313815680,1707735074371,-768.44,0.00023501,2]
[313815681,1707735074380,-500.0,0.00023501,2]
[313815682,1707735074389,-2328.9,0.00023501,2]
[313815683,1707735074399,-6830.87,0.00023501,2]
[313815684,1707735074408,-581.45,0.00023501,2]
[313815685,1707735074417,-500.0,0.00023501,2]
[313815686,1707735074427,-550.33,0.00023501,2]
[313815687,1707735074436,-500.0,0.00023501,2]
[313815688,1707735074445,-500.0,0.00023501,2]
[313815689,1707735074454,-2234.17,0.00023501,2]
[313815690,1707735074466,-1353.61,0.00023501,2]
[313815691,1707735074475,-589.69,0.00023501,2]
[313815692,1707735074484,-500.0,0.00023501,2]
[313815693,1707735074493,-500.0,0.00023501,2]
[313815694,1707735074502,-500.0,0.00023501,2]
[313815695,1707735074511,-1145.24,0.00023501,2]
[313815696,1707735074521,-996.07,0.00023501,2]
[313815697,1707735074530,-1751.56,0.00023501,2]
[313815698,1707735074540,-727.06,0.00023501,2]
[313815699,1707735074549,-500.0,0.00023501,2]
[313815700,1707735074558,-500.0,0.00023501,2]
[313815701,1707735074567,-1151.45,0.00023501,2]
[313815702,1707735074576,-843.89,0.00023501,2]
[313815703,1707735074586,-500.0,0.00023501,2]
[313815704,1707735074595,-500.0,0.00023501,2]
[313815705,1707735074604,-500.0,0.00023501,2]
[313815706,1707735074613,-500.0,0.00023501,2]
[313815707,1707735074621,-1447.65,0.00023501,2]
[313815708,1707735074632,-500.0,0.00023501,2]
[313815709,1707735074641,-500.0,0.00023501,2]
[313815710,1707735074651,-2805.58,0.00023501,2]
[313815711,1707735074661,-614.59450796,0.00023501,2]
[313815712,1707735074670,-1232.65,0.00023501,2]
[313815713,1707735074679,-500.0,0.00023501,2]
[313815714,1707735074688,-500.0,0.00023501,2]
[313815715,1707735074697,-500.0,0.00023501,2]
[313815716,1707735074706,-500.0,0.00023501,2]
[313815717,1707735074714,-500.0,0.00023501,2]
[313815718,1707735074724,-500.0,0.00023501,2]
[313815719,1707735074733,-1190.91,0.00023501,2]
[313815720,1707735074742,-500.0,0.00023501,2]
[313815721,1707735074751,-484.25263503,0.00023501,2]
[313815722,1707735074761,-150.0,0.00023501,2]
[313815723,1707735074770,-9748.41,0.00023501,2]
[313815724,1707735074779,-899.12,0.00023501,2]
[313815725,1707735074788,-2215.09,0.00023501,2]
[313815726,1707735074797,-620.29,0.00023501,2]
[313815727,1707735074806,-500.0,0.00023501,2]
[313815728,1707735074815,-500.0,0.00023501,2]
[313815729,1707735074824,-500.0,0.00023501,2]
[313815730,1707735074834,-500.0,0.00023501,2]
[313815731,1707735074843,-500.0,0.00023501,2]
[313815732,1707735074852,-500.0,0.00023501,2]